bitfinex/quotes_BTCUSD_20250718
["timestamp","ask_amount","ask_price","bid_price","bid_amount"]
[1752863553809,1.35681282,117710.0,117700.0,8.496e-05]
[1752863556025,0.87196511,117710.0,117700.0,8.496e-05]
[1752863556254,1.30681282,117710.0,117700.0,8.496e-05]
[1752863556476,1.35681282,117710.0,117700.0,8.496e-05]
[1752863556714,0.67177896,117690.0,117680.0,0.01927]
[1752863556930,0.90465958,117690.0,117680.0,0.00297]
[1752863557366,0.89670924,117690.0,117680.0,0.00297]
[1752863557552,0.93015487,117690.0,117680.0,0.00297]
[1752863558436,0.92222724,117690.0,117680.0,0.00297]
[1752863558872,0.17844988,117680.0,117670.0,0.10258128]
[1752863559092,1.22826787,117680.0,117670.0,0.00513]
[1752863559321,0.17846504,117670.0,117660.0,0.03477]
[1752863559530,0.88618303,117670.0,117660.0,0.03693]
[1752863560183,0.40133532,117670.0,117660.0,0.03693]
[1752863560401,0.88618303,117670.0,117660.0,0.03693]
[1752863560628,0.88618303,117670.0,117660.0,0.03743008]
[1752863560858,0.89585898,117670.0,117660.0,0.03743008]
[1752863561537,0.89585898,117670.0,117660.0,0.03843008]
[1752863562217,0.89585898,117670.0,117660.0,0.02323008]
[1752863562218,0.89783898,117670.0,117660.0,0.02323008]
[1752863562445,0.89833898,117670.0,117660.0,0.00447008]
[1752863563114,0.89833898,117670.0,117660.0,0.00663008]
[1752863563335,0.89635898,117670.0,117660.0,0.02303008]
[1752863563557,0.41151127,117670.0,117660.0,0.02303008]
[1752863563780,0.89833898,117670.0,117660.0,0.00150008]
[1752863564010,1.27063898,117670.0,117660.0,0.00150008]
[1752863564457,0.75349127,117670.0,117660.0,0.00447008]
[1752863564694,1.23833898,117670.0,117660.0,0.00663008]
[1752863564935,0.75349127,117670.0,117660.0,0.00663008]
[1752863565162,1.23833898,117670.0,117660.0,0.00663008]
[1752863565389,1.23833898,117670.0,117660.0,0.00447008]
[1752863567152,0.75349127,117670.0,117660.0,0.00447008]
[1752863567361,1.23833898,117670.0,117660.0,0.00447008]
[1752863567567,1.23833898,117670.0,117660.0,0.02223008]
[1752863568337,0.75101127,117670.0,117660.0,0.02223008]
[1752863568561,0.74217532,117670.0,117660.0,0.03763008]
[1752863569060,0.16373421,117670.0,117660.0,0.70945678]
[1752863569266,0.16373421,117670.0,117660.0,0.72645403]
[1752863569484,0.19646143,117670.0,117660.0,0.70095801]
[1752863569697,0.19646143,117670.0,117660.0,0.2161103]
[1752863570156,0.18796331,117670.0,117660.0,0.2161103]
[1752863570383,0.17946512,117670.0,117660.0,0.03763008]
[1752863570583,0.17946512,117670.0,117660.0,0.03675408]
[1752863570833,0.2649754,117670.0,117660.0,0.03675408]
[1752863571055,0.74982311,117670.0,117660.0,0.03675408]
[1752863571718,0.2649754,117670.0,117660.0,0.03675408]
[1752863572885,0.74982311,117670.0,117660.0,0.03675408]
[1752863574471,0.2649754,117670.0,117660.0,0.03675408]
[1752863575111,0.2649754,117670.0,117660.0,0.20673538]
[1752863575326,0.2649754,117670.0,117660.0,0.03675408]
[1752863575757,0.2649754,117670.0,117660.0,0.20673538]
[1752863575966,0.41039345,117670.0,117660.0,0.22373343]
[1752863576421,0.41039345,117670.0,117660.0,0.23223235]
[1752863576972,0.4018954,117670.0,117660.0,0.23223235]
[1752863577194,0.4018954,117670.0,117660.0,0.24073119]
[1752863577370,0.00949805,117670.0,117660.0,0.7255789]
[1752863577587,0.02649415,117670.0,117660.0,0.73407702]
[1752863577770,0.02649407,117670.0,117660.0,0.73407702]
[1752863577970,0.20495919,117670.0,117660.0,0.24073076]
[1752863578179,0.21345753,117670.0,117660.0,0.24073076]
[1752863578390,0.21345753,117670.0,117660.0,0.72557847]
[1752863578790,0.03499234,117670.0,117660.0,0.73407702]
[1752863579044,0.21345753,117670.0,117660.0,0.73407702]
[1752863579285,0.21345753,117670.0,117660.0,0.72557847]
[1752863579707,0.21345753,117670.0,117660.0,0.24063569]
[1752863579905,0.19646165,117670.0,117660.0,0.23213706]
[1752863580352,0.19646165,117670.0,117660.0,0.22363822]
[1752863580574,0.17946519,117670.0,117660.0,0.03665901]
[1752863581940,0.17946519,117670.0,117660.0,0.22363821]
[1752863582163,0.17946519,117670.0,117660.0,0.23213698]
[1752863582360,0.17946519,117670.0,117660.0,0.21513937]
[1752863582564,0.17946519,117670.0,117660.0,0.04515807]
[1752863582775,0.17096685,117670.0,117660.0,0.03665901]
[1752863583442,0.65779456,117670.0,117660.0,0.02125901]
[1752863583668,0.74330484,117670.0,117660.0,0.00052901]
[1752863583883,0.25845713,117670.0,117660.0,0.00052901]
[1752863584132,0.25845713,117670.0,117660.0,0.00348901]
[1752863584353,0.25845713,117670.0,117660.0,0.00052901]
[1752863584573,0.82906446,117670.0,117660.0,0.00052901]
[1752863584834,0.74330484,117670.0,117660.0,0.00052901]
[1752863585084,1.09880484,117670.0,117660.0,0.00052901]
[1752863585328,1.11470484,117670.0,117660.0,0.00052901]
[1752863585548,1.11615484,117670.0,117660.0,0.00052901]
[1752863585977,0.62985713,117670.0,117660.0,0.00052901]
[1752863586203,1.11470484,117670.0,117660.0,0.00052901]
[1752863586911,0.62985713,117670.0,117660.0,0.00052901]
[1752863587131,1.11470484,117670.0,117660.0,0.00052901]
[1752863589002,0.62985713,117670.0,117660.0,0.00052901]
[1752863589213,0.59845713,117670.0,117660.0,0.00348901]
[1752863589435,0.59845713,117670.0,117660.0,0.02194901]
[1752863589666,0.59647713,117670.0,117660.0,0.03834901]
[1752863589892,0.73303713,117670.0,117660.0,0.03834901]
[1752863590104,0.59647713,117670.0,117660.0,0.03834901]
[1752863590335,0.17946504,117670.0,117660.0,0.78293482]
[1752863590582,0.01799574,117670.0,117660.0,0.71867433]
[1752863590832,0.02649386,117670.0,117660.0,0.71867433]
[1752863591065,0.01799574,117670.0,117660.0,0.71867433]
[1752863591288,0.03499213,117670.0,117660.0,0.71867433]
[1752863591517,0.00949776,117670.0,117660.0,0.71867433]
[1752863591793,0.001,117670.0,117660.0,0.71867433]
[1752863592253,0.001,117670.0,117660.0,0.8189748]
[1752863592463,0.001,117670.0,117660.0,0.73321518]
[1752863593778,0.001,117670.0,117660.0,0.24836747]
[1752863593998,0.001,117670.0,117660.0,0.73321518]
[1752863594224,0.001,117670.0,117660.0,0.73268617]
[1752863594473,0.002,117670.0,117660.0,0.73668617]
[1752863594683,0.002,117670.0,117660.0,0.73268617]
[1752863595115,0.003,117670.0,117660.0,0.73768617]
[1752863595974,0.01999559,117670.0,117660.0,0.73768617]
[1752863596390,0.01049769,117670.0,117660.0,0.73768617]
[1752863597671,0.01899552,117670.0,117660.0,0.25283846]
[1752863597881,0.0274935,117670.0,117660.0,0.73768617]
[1752863598331,0.002,117670.0,117660.0,0.73768617]
[1752863598737,0.002,117670.0,117660.0,0.73868617]
[1752863599713,0.002,117670.0,117660.0,0.82444579]
[1752863600138,0.002,117670.0,117660.0,1.04643607]
[1752863602025,0.002,117670.0,117660.0,1.38643607]
[1752863606084,0.002,117670.0,117660.0,1.30067645]
[1752863610123,0.197461,117670.0,117660.0,0.20590036]
[1752863610337,0.20793934,117670.0,117660.0,0.20147819]
[1752863610573,0.20793934,117670.0,117660.0,0.32048022]
[1752863610574,0.19094346,117670.0,117660.0,0.32048022]
[1752863610803,0.22865313,117670.0,117660.0,0.80852793]
[1752863611020,0.22865313,117670.0,117660.0,0.8276754]
[1752863611269,0.02097632,117670.0,117660.0,0.83617395]
[1752863611513,0.18896317,117670.0,117660.0,0.83617395]
[1752863611753,0.18896317,117670.0,117660.0,0.83617403]
[1752863612014,0.19746151,117670.0,117660.0,0.83617403]
[1752863612440,0.19746151,117670.0,117660.0,0.70017403]
[1752863612685,0.19746151,117670.0,117660.0,0.84467258]
[1752863612686,0.01899573,117670.0,117660.0,0.84467258]
[1752863612920,0.0274935,117670.0,117660.0,0.87617258]
[1752863613142,0.01899552,117670.0,117660.0,0.87617258]
[1752863613372,0.02749357,117670.0,117660.0,0.87617258]
[1752863613588,0.0274935,117670.0,117660.0,0.87617258]
[1752863614710,0.002,117670.0,117660.0,0.89071343]
[1752863617514,0.002,117670.0,117660.0,0.97622371]
[1752863624292,0.002,117670.0,117660.0,0.491376]
[1752863624503,0.002,117670.0,117660.0,0.97622371]
[1752863628442,0.002,117670.0,117660.0,1.80107142]
[1752863628659,0.002,117670.0,117660.0,1.31622371]
[1752863629117,0.002,117670.0,117660.0,0.831376]
[1752863629323,0.002,117670.0,117660.0,1.31522371]
[1752863629530,0.05798916,117690.0,117680.0,0.20998524]
[1752863629750,0.05996916,117690.0,117680.0,0.82995295]
[1752863629996,0.03448,117690.0,117680.0,0.82995295]
[1752863630223,0.04297639,117690.0,117680.0,0.82995295]
[1752863630432,0.03448,117690.0,117680.0,0.82995295]
[1752863630647,0.01798,117690.0,117680.0,0.83315295]
[1752863630860,0.02647632,117690.0,117680.0,0.83530295]
[1752863631105,0.04346917,117690.0,117680.0,0.83730295]
[1752863631287,0.06046245,117690.0,117680.0,0.83730295]
[1752863631495,0.05886917,117690.0,117680.0,0.83515295]
[1752863631704,0.05037271,117690.0,117680.0,0.83515295]
[1752863631926,0.05886917,117690.0,117680.0,0.83515295]
[1752863632699,0.04187632,117690.0,117680.0,0.83515295]
[1752863632819,0.01047624,117690.0,117680.0,0.83730295]
[1752863633258,0.01897263,117690.0,117680.0,0.83730295]
[1752863633455,0.06478368,117700.0,117690.0,0.195428]
[1752863633681,0.23668721,117700.0,117690.0,0.68027571]
[1752863633891,0.23668721,117700.0,117690.0,0.81535571]
[1752863634104,0.23668721,117700.0,117690.0,0.32201154]
[1752863634105,0.22819154,117700.0,117690.0,0.32201154]
[1752863634310,0.22819154,117700.0,117690.0,0.81535585]
[1752863634517,0.22919154,117700.0,117690.0,0.81535585]
[1752863634710,0.22919154,117700.0,117690.0,0.82385238]
[1752863635225,0.22919154,117700.0,117690.0,0.33900467]
[1752863636082,0.22919154,117700.0,117690.0,0.34750106]
[1752863636083,0.05926801,117700.0,117690.0,0.34750106]
[1752863636541,0.05926801,117700.0,117690.0,0.21242106]
[1752863636744,0.22919154,117700.0,117690.0,0.34746106]
[1752863636955,0.22919154,117700.0,117690.0,0.83230877]
[1752863638196,0.05926787,117700.0,117690.0,0.83230877]
[1752863638635,0.05926787,117700.0,117690.0,0.69726877]
[1752863638866,0.06776397,117700.0,117690.0,0.83230877]
[1752863639087,0.06776397,117700.0,117690.0,0.83550877]
[1752863639270,0.05077184,117700.0,117690.0,0.83550877]
[1752863639698,0.05926787,117700.0,117690.0,0.83550877]
[1752863639940,0.01878,117700.0,117690.0,0.83765877]
[1752863640186,0.01799119,117700.0,117690.0,0.83765877]
[1752863640417,0.01799119,117700.0,117690.0,0.85315877]
[1752863640626,0.03498289,117700.0,117690.0,0.83765877]
[1752863641068,0.00949552,117700.0,117690.0,0.83765877]
[1752863641303,0.00949559,117700.0,117690.0,0.83765877]
[1752863641786,0.001,117700.0,117690.0,0.92341839]
[1752863642004,0.001,117700.0,117690.0,0.86985877]
[1752863642230,0.001,117700.0,117690.0,0.88439962]
[1752863642692,0.001,117700.0,117690.0,1.22439962]
[1752863642936,0.001,117700.0,117690.0,1.37702118]
[1752863643167,0.001,117700.0,117690.0,1.39566952]
[1752863643406,0.03447733,117720.0,117710.0,0.19539457]
[1752863643637,0.03447733,117720.0,117690.0,1.1177821]
[1752863643638,0.02548736,117700.0,117690.0,1.1177821]
[1752863647500,0.03149941,117700.0,117690.0,0.84289863]
[1752863647728,0.00049941,117700.0,117690.0,0.9742991]
[1752863648390,0.0379755,117710.0,117700.0,0.19541118]
[1752863648593,0.02948005,117710.0,117700.0,0.68250387]
[1752863648793,0.0169901,117710.0,117700.0,0.68545387]
[1752863649451,0.02548541,117710.0,117700.0,0.68545387]
[1752863649898,0.20388988,117710.0,117700.0,0.70474365]
[1752863650134,0.04247624,117710.0,117700.0,0.7217352]
[1752863650365,0.04247624,117710.0,117700.0,8.498e-05]
[1752863650366,1.04602763,117710.0,117700.0,8.498e-05]
[1752863650587,1.27010791,117710.0,117700.0,8.498e-05]
[1752863650810,1.29880533,117710.0,117700.0,0.00108498]
[1752863651030,0.81395762,117710.0,117700.0,0.00108498]
[1752863651248,1.27010791,117710.0,117700.0,0.00108498]
[1752863651502,1.27010791,117710.0,117700.0,8.498e-05]
[1752863651787,1.27110791,117710.0,117700.0,8.498e-05]
[1752863652449,1.27310791,117710.0,117700.0,8.498e-05]
[1752863652683,0.6511402,117710.0,117700.0,8.498e-05]
[1752863652909,0.7868902,117710.0,117700.0,8.498e-05]
[1752863653139,0.7883402,117710.0,117700.0,8.498e-05]
[1752863654275,1.27318791,117710.0,117700.0,8.498e-05]
[1752863654519,0.7883402,117710.0,117700.0,8.498e-05]
[1752863654743,1.27318791,117710.0,117700.0,8.498e-05]
[1752863655641,1.27218791,117710.0,117700.0,8.498e-05]
[1752863655859,1.27418791,117710.0,117700.0,8.498e-05]
[1752863656385,0.18696302,117670.0,117660.0,0.00295]
[1752863656602,0.18696302,117670.0,117660.0,0.00511]
[1752863656835,0.18894302,117670.0,117660.0,0.00511]
[1752863657049,0.1869792,117660.0,117650.0,0.58710899]
[1752863657278,0.1869792,117660.0,117650.0,0.60380984]
[1752863657718,0.1869792,117660.0,117650.0,0.60430925]
[1752863657964,0.17848036,117660.0,117650.0,0.5897684]
[1752863658190,0.17848036,117660.0,117650.0,0.5579684]
[1752863658621,0.17848036,117660.0,117650.0,0.56656817]
[1752863658828,0.17848036,117660.0,117650.0,0.58286817]
[1752863659044,0.05739408,117670.0,117650.0,0.51015712]
[1752863659255,0.01699704,117660.0,117650.0,0.00900941]
[1752863659497,0.15487696,117660.0,117650.0,0.49385712]
[1752863659943,0.15487696,117660.0,117650.0,0.01750919]
[1752863659944,0.14637841,117660.0,117650.0,0.01750919]
[1752863660170,0.13788,117660.0,117650.0,0.02600883]
[1752863660409,0.13788,117660.0,117650.0,0.23650278]
[1752863660662,0.13788,117660.0,117650.0,0.25200278]
[1752863661983,0.67041174,117680.0,117670.0,0.17846519]
[1752863661984,0.0321,117680.0,117670.0,0.17846519]
[1752863662203,0.00849776,117670.0,117660.0,0.18991692]
[1752863662427,0.02549343,117670.0,117660.0,0.20057577]
[1752863662644,0.03399155,117670.0,117660.0,0.20057577]
[1752863662869,0.03399155,117670.0,117660.0,0.20057584]
[1752863663082,0.02549343,117670.0,117660.0,0.20907447]
[1752863663232,0.03399155,117670.0,117660.0,0.20907447]
[1752863663468,0.03399155,117670.0,117660.0,0.20907454]
[1752863663902,0.04248982,117670.0,117660.0,0.20057584]
[1752863664123,0.03399155,117670.0,117660.0,0.20907454]
[1752863664248,0.01699545,117670.0,117660.0,0.21757273]
[1752863664507,0.28094262,117680.0,117670.0,0.16996685]
[1752863664712,0.93772274,117680.0,117670.0,0.16996685]
[1752863664918,0.92922549,117680.0,117670.0,0.16996685]
[1752863665349,0.44437778,117680.0,117670.0,0.16996685]
[1752863665569,0.02549379,117670.0,117660.0,0.19841555]
[1752863665788,0.16321379,117670.0,117660.0,0.20057555]
[1752863666007,0.02549379,117670.0,117660.0,0.20057555]
[1752863666235,0.16325379,117670.0,117660.0,0.20057555]
[1752863666463,0.02549379,117670.0,117660.0,0.20907418]
[1752863666684,0.14625776,117670.0,117660.0,0.21757273]
[1752863666915,0.14621776,117670.0,117660.0,0.21757273]
[1752863667175,0.15471574,117670.0,117660.0,0.20907418]
[1752863667407,0.16321386,117670.0,117660.0,0.19207685]
[1752863668275,0.16313386,117670.0,117660.0,0.21107418]
[1752863668539,0.1716322,117670.0,117660.0,0.18557808]
[1752863668765,0.1716322,117670.0,117660.0,0.19407692]
[1752863668996,0.16507386,117670.0,117660.0,0.20257562]
[1752863669230,0.15657574,117670.0,117660.0,0.20257562]
[1752863669483,0.34353905,117670.0,117660.0,0.19407706]
[1752863669707,0.34353905,117670.0,117660.0,0.18557822]
[1752863669936,0.33504129,117670.0,117660.0,0.17707916]
[1752863670146,0.33504129,117670.0,117660.0,0.18557822]
[1752863670355,0.16511444,117670.0,117660.0,0.20257605]
[1752863670572,0.16511444,117670.0,117660.0,0.21107482]
[1752863670804,0.16511444,117670.0,117660.0,0.21957352]
[1752863671237,0.16511444,117670.0,117660.0,0.20257576]
[1752863671454,0.33508129,117670.0,117660.0,0.20257576]
[1752863671681,0.33508129,117670.0,117660.0,0.19407699]
[1752863671902,0.33568129,117670.0,117660.0,0.18557815]
[1752863672108,0.820529,117670.0,117660.0,0.18896707]
[1752863672338,0.9309913,117670.0,117660.0,0.002]
[1752863673230,0.93943597,117670.0,117660.0,0.002]
[1752863673445,0.9309913,117670.0,117660.0,0.002]
[1752863673680,0.9319913,117670.0,117660.0,0.002]
[1752863673925,0.20888022,117660.0,117650.0,0.00089941]
[1752863674138,0.78121821,117660.0,117650.0,0.00089941]
[1752863674356,0.78266821,117660.0,117650.0,0.00089941]
[1752863674769,0.2978205,117660.0,117650.0,0.00089941]
[1752863674989,0.78266821,117660.0,117650.0,0.00089941]
[1752863675234,0.78266821,117660.0,117650.0,0.00289941]
[1752863676115,0.78121821,117660.0,117650.0,0.00289941]
[1752863676812,0.91949821,117660.0,117650.0,0.00289941]
[1752863682466,0.92094821,117660.0,117650.0,0.00289941]
[1752863682685,1.26094821,117660.0,117650.0,0.00289941]
[1752863683357,1.26947263,117660.0,117650.0,0.00289941]
[1752863684045,1.26947263,117660.0,117650.0,0.00089941]
[1752863684265,1.27047263,117660.0,117650.0,0.00089941]
[1752863684475,1.27047263,117660.0,117650.0,0.00189941]
[1752863685114,1.35623225,117660.0,117650.0,0.00189941]
[1752863685320,1.27047263,117660.0,117650.0,0.00189941]
[1752863685967,1.13219263,117660.0,117650.0,0.00189941]
[1752863686178,1.27023263,117660.0,117650.0,0.00189941]
[1752863686634,1.13219263,117660.0,117650.0,0.00189941]
[1752863686842,1.27023263,117660.0,117650.0,0.00189941]
[1752863687495,1.27015263,117660.0,117650.0,0.00189941]
[1752863687974,1.27011263,117660.0,117650.0,0.00189941]
[1752863688635,1.27007263,117660.0,117650.0,0.00189941]
[1752863689076,1.26862263,117660.0,117650.0,0.00189941]
[1752863690374,1.13074263,117660.0,117650.0,0.00189941]
[1752863690585,1.26846263,117660.0,117650.0,0.00189941]
[1752863690797,1.13074263,117660.0,117650.0,0.00189941]
[1752863691010,1.26846263,117660.0,117650.0,0.00189941]
[1752863691191,1.13074263,117660.0,117650.0,0.00189941]
[1752863691406,1.26842263,117660.0,117650.0,0.00189941]
[1752863691817,1.26838263,117660.0,117650.0,0.00189941]
[1752863692562,1.26830263,117660.0,117650.0,0.00189941]
[1752863693196,1.13074263,117660.0,117650.0,0.00189941]
[1752863693421,1.26826263,117660.0,117650.0,0.00189941]
[1752863693664,1.13074263,117660.0,117650.0,0.00189941]
[1752863693903,1.23782263,117660.0,117650.0,0.00709941]
[1752863695052,1.10034263,117660.0,117650.0,0.00709941]
[1752863695279,1.22925821,117660.0,117650.0,0.00709941]
[1752863696215,1.09181821,117660.0,117650.0,0.00709941]
[1752863696453,1.22925821,117660.0,117650.0,0.00513941]
[1752863696663,1.22925821,117660.0,117650.0,0.00189941]
[1752863696893,1.25312903,117660.0,117650.0,0.00189941]
[1752863697120,1.26902903,117660.0,117650.0,0.00189941]
[1752863698446,1.13158903,117660.0,117650.0,0.00189941]
[1752863698907,1.26898903,117660.0,117650.0,0.00189941]
[1752863699555,1.13158903,117660.0,117650.0,0.00189941]
[1752863699762,1.26894903,117660.0,117650.0,0.00189941]
[1752863699999,1.13158903,117660.0,117650.0,0.00189941]
[1752863700214,1.26886903,117660.0,117650.0,0.00189941]
[1752863700650,1.27031903,117660.0,117650.0,0.00189941]
[1752863702387,1.26194821,117660.0,117650.0,0.00189941]
[1752863703086,1.26210821,117660.0,117650.0,0.00189941]
[1752863703358,1.12466821,117660.0,117650.0,0.00189941]
[1752863703580,1.26202821,117660.0,117650.0,0.00189941]
[1752863703806,1.88264432,117660.0,117650.0,0.00189941]
[1752863704018,1.8747015,117660.0,117650.0,0.00189941]
[1752863704451,1.8737015,117660.0,117650.0,0.00189941]
[1752863704672,1.90468819,117660.0,117650.0,0.00089941]
[1752863704895,1.8777015,117660.0,117650.0,0.00089941]
[1752863706076,1.36502821,117660.0,117650.0,0.00089941]
[1752863707481,1.22766821,117660.0,117650.0,0.00089941]
[1752863707911,1.36486821,117660.0,117650.0,0.00089941]
[1752863708123,1.39003159,117660.0,117650.0,0.00089941]
[1752863708763,1.34003159,117660.0,117650.0,0.00089941]
[1752863708979,1.39003159,117660.0,117650.0,0.00089941]
[1752863709228,1.31329821,117660.0,117650.0,0.00089941]
[1752863709446,1.26329821,117660.0,117650.0,0.00089941]
[1752863709891,1.12621821,117660.0,117650.0,0.00089941]
[1752863710140,1.26329821,117660.0,117650.0,0.00089941]
[1752863710343,1.12621821,117660.0,117650.0,0.00089941]
[1752863711021,1.11031821,117660.0,117650.0,0.00089941]
[1752863711252,1.23189821,117660.0,117650.0,0.00089941]
[1752863711673,1.24779821,117660.0,117650.0,0.00089941]
[1752863711904,1.26359821,117660.0,117650.0,0.00089941]
[1752863712984,1.27949247,117660.0,117650.0,0.00089941]
[1752863713652,1.12661247,117660.0,117650.0,0.00089941]
[1752863713874,0.77864476,117660.0,117650.0,0.00089941]
[1752863714116,1.26349247,117660.0,117650.0,0.00089941]
[1752863715416,1.14221247,117660.0,117650.0,0.00089941]
[1752863715657,1.24755247,117660.0,117650.0,0.00390941]
[1752863715881,1.11071247,117660.0,117650.0,0.00089941]
[1752863716097,1.24755247,117660.0,117650.0,0.00089941]
[1752863717200,1.11071247,117660.0,117650.0,0.00089941]
[1752863717412,1.24743247,117660.0,117650.0,0.00089941]
[1752863717625,1.11071247,117660.0,117650.0,0.00089941]
[1752863717834,1.24743247,117660.0,117650.0,0.00089941]
[1752863718055,1.27779247,117660.0,117650.0,0.00089941]
[1752863718752,1.14111247,117660.0,117650.0,0.00089941]
[1752863719417,1.27779247,117660.0,117650.0,0.00089941]
[1752863720299,1.26189821,117660.0,117650.0,0.00089941]
[1752863720537,1.27779848,117660.0,117650.0,0.00089941]
[1752863721328,1.27779846,117660.0,117650.0,0.00089941]
[1752863721483,1.14111846,117660.0,117650.0,0.00089941]
[1752863721703,1.24735846,117660.0,117650.0,0.00089941]
[1752863721914,1.11071846,117660.0,117650.0,0.00089941]
[1752863722323,1.23145821,117660.0,117650.0,0.00089941]
[1752863725028,1.24695821,117660.0,117650.0,0.00089941]
[1752863725243,1.26265821,117660.0,117650.0,0.00089941]
[1752863725473,1.2800127,117660.0,117650.0,0.00089941]
[1752863725692,1.2802127,117660.0,117650.0,0.00089941]
[1752863726843,1.2787627,117660.0,117650.0,0.00089941]
[1752863727059,1.2802127,117660.0,117650.0,0.00089941]
[1752863727460,1.1433727,117660.0,117650.0,0.00089941]
[1752863727659,1.2802127,117660.0,117650.0,0.00089941]
[1752863727895,1.1433727,117660.0,117650.0,0.00089941]
[1752863728536,1.2802927,117660.0,117650.0,0.00089941]
[1752863728760,1.2788427,117660.0,117650.0,0.00089941]
[1752863729007,1.1419227,117660.0,117650.0,0.00089941]
[1752863729265,1.2788027,117660.0,117650.0,0.00089941]
[1752863729470,1.2802527,117660.0,117650.0,0.00089941]
[1752863731473,1.1419227,117660.0,117650.0,0.00089941]
[1752863731660,0.79379499,117660.0,117650.0,0.00089941]
[1752863731906,1.2786427,117660.0,117650.0,0.00089941]
[1752863733417,1.2800927,117660.0,117650.0,0.00089941]
[1752863735634,1.2803727,117660.0,117650.0,0.00089941]
[1752863735871,1.2789227,117660.0,117650.0,0.00089941]
[1752863736103,1.36468232,117660.0,117650.0,0.00089941]
[1752863736301,1.2789227,117660.0,117650.0,0.00089941]
[1752863736582,1.1419227,117660.0,117650.0,0.00089941]
[1752863736790,1.2789227,117660.0,117650.0,0.00089941]
[1752863737683,1.1419227,117660.0,117650.0,0.00089941]
[1752863738090,1.2804527,117660.0,117650.0,0.00089941]
[1752863738693,1.1433727,117660.0,117650.0,0.00089941]
[1752863738929,1.2805327,117660.0,117650.0,0.00089941]
[1752863740637,1.28849392,117660.0,117650.0,0.00089941]
[1752863740845,1.15133392,117660.0,117650.0,0.00089941]
[1752863741067,1.28857392,117660.0,117650.0,0.00089941]
[1752863741261,1.15133392,117660.0,117650.0,0.00089941]
[1752863741516,1.28849392,117660.0,117650.0,0.00089941]
[1752863741724,1.28700392,117660.0,117650.0,0.00089941]
[1752863741935,1.27130392,117660.0,117650.0,0.00089941]
[1752863742563,1.13418392,117660.0,117650.0,0.00089941]
[1752863742917,1.25580649,117660.0,117650.0,0.00089941]
[1752863743091,1.102782,117660.0,117650.0,0.00089941]
[1752863743302,1.239862,117660.0,117650.0,0.00089941]
[1752863743487,1.102782,117660.0,117650.0,0.00089941]
[1752863743688,1.239822,117660.0,117650.0,0.00089941]
[1752863744948,1.100802,117660.0,117650.0,0.03837941]
[1752863745166,1.22987821,117660.0,117650.0,0.03837941]
[1752863745389,0.6079905,117660.0,117650.0,0.03837941]
[1752863745607,0.7449505,117660.0,117650.0,0.03837941]
[1752863745827,0.4049505,117660.0,117650.0,0.03837941]
[1752863746033,0.2679905,117660.0,117650.0,0.03837941]
[1752863746250,0.2679905,117660.0,117650.0,0.06677943]
[1752863746251,0.2659905,117660.0,117650.0,0.06677943]
[1752863746477,0.31748022,117660.0,117650.0,0.03837941]
[1752863746690,0.31848022,117660.0,117650.0,0.03837941]
[1752863747581,0.31648022,117660.0,117650.0,0.21687487]
[1752863747829,0.31648022,117660.0,117650.0,0.22537451]
[1752863748058,0.31748022,117660.0,117650.0,0.20837516]
[1752863748481,0.3089813,117660.0,117650.0,0.03837941]
[1752863748699,0.3079813,117660.0,117650.0,0.03837941]
[1752863749136,0.79182901,117660.0,117650.0,0.03937941]
[1752863751069,0.79182901,117660.0,117650.0,0.24306395]
[1752863751070,0.3069813,117660.0,117650.0,0.24306395]
[1752863751530,0.1699813,117660.0,117650.0,0.25156366]
[1752863751774,0.3070613,117660.0,117650.0,0.25156366]
[1752863751981,0.1699813,117660.0,117650.0,0.24306395]
[1752863752182,0.3069413,117660.0,117650.0,0.03937941]
[1752863752590,0.3068613,117660.0,117650.0,0.03937941]
[1752863753228,0.79170901,117660.0,117650.0,0.03937941]
[1752863756006,0.79162901,117660.0,117650.0,0.03937941]
[1752863758853,0.3067813,117660.0,117650.0,0.03937941]
[1752863759038,0.79162901,117660.0,117650.0,0.03937941]
[1752863760012,0.3067813,117660.0,117650.0,0.03937941]
[1752863760224,0.79162901,117660.0,117650.0,0.03937941]
[1752863760376,0.87713929,117660.0,117650.0,0.03937941]
[1752863760594,0.87713929,117660.0,117650.0,0.02307941]
[1752863761392,0.74033929,117660.0,117650.0,0.03907941]
[1752863761609,0.87713929,117660.0,117650.0,0.03907941]
[1752863763289,0.39229158,117660.0,117650.0,0.03907941]
[1752863763502,0.87713929,117660.0,117650.0,0.03907941]
[1752863764750,0.39229158,117660.0,117650.0,0.03907941]
[1752863765886,0.3067813,117660.0,117650.0,0.03907941]
[1752863766092,0.1699813,117660.0,117650.0,0.03907941]
[1752863766596,0.3067413,117660.0,117650.0,0.03907941]
[1752863766830,0.17846512,117670.0,117660.0,0.02549653]
[1752863767063,0.17846512,117670.0,117660.0,0.72683423]
[1752863767064,0.01699581,117670.0,117660.0,0.72683423]
[1752863767306,0.16995241,117680.0,117670.0,0.18696302]
[1752863767307,0.02549155,117680.0,117670.0,0.18696302]
[1752863767515,0.01699415,117680.0,117670.0,0.68232856]
[1752863767734,0.02549148,117680.0,117670.0,0.71831856]
[1752863767939,0.03398895,117680.0,117670.0,0.71831856]
[1752863768156,0.30664021,117690.0,117680.0,0.22834461]
[1752863768157,0.14517675,117690.0,117680.0,0.22834461]
[1752863768407,0.01699328,117690.0,117680.0,0.23345468]
[1752863768626,0.01699328,117690.0,117680.0,0.71830239]
[1752863768836,0.01699328,117690.0,117680.0,0.7267995]
[1752863769057,0.01699328,117690.0,117680.0,0.24195179]
[1752863769267,0.03398628,117690.0,117680.0,0.24195179]
[1752863769502,0.02548953,117690.0,117680.0,0.24195179]
[1752863769757,0.1869314,117690.0,117680.0,0.03801]
[1752863770025,0.67177911,117690.0,117680.0,0.03801]
[1752863770771,0.1869314,117690.0,117680.0,0.03801]
[1752863771305,0.67177911,117690.0,117680.0,0.03801]
[1752863771718,0.1869314,117690.0,117680.0,0.03801]
[1752863775460,0.1869314,117690.0,117680.0,0.20796241]
[1752863775642,0.1869314,117690.0,117680.0,0.22495757]
[1752863776215,0.1869314,117690.0,117680.0,0.03801]
[1752863776437,0.17843472,117690.0,117680.0,0.03801]
[1752863776657,0.17843472,117690.0,117680.0,0.21645995]
[1752863776869,0.18693125,117690.0,117680.0,0.25778277]
[1752863777091,0.20392446,117690.0,117680.0,0.22495728]
[1752863777307,0.19542814,117690.0,117680.0,0.21645995]
[1752863777548,0.19542814,117690.0,117680.0,0.22495742]
[1752863778010,0.18693161,117690.0,117680.0,0.03801]
[1752863778225,0.32501161,117690.0,117680.0,0.04001]
[1752863778441,0.32501161,117690.0,117680.0,0.20996241]
[1752863778680,0.32501161,117690.0,117680.0,0.04001]
[1752863778894,0.32501161,117690.0,117680.0,0.20996241]
[1752863779111,0.32501161,117690.0,117680.0,0.21845995]
[1752863779748,0.31651486,117690.0,117680.0,0.04001]
[1752863781312,0.31651486,117690.0,117680.0,0.21846003]
[1752863782544,0.31643486,117690.0,117680.0,0.21846003]
[1752863782758,0.31643486,117690.0,117680.0,0.04850762]
[1752863782990,0.31643486,117690.0,117680.0,0.04001]
[1752863785601,0.31643486,117690.0,117680.0,0.21846003]